fUSD/lending_fUSD_20250123
["ID","MTS","AMOUNT","RATE_DAILY","PERIOD"]
[350103375,1737628246493,-500.0,0.0001808,2]
[350103376,1737628246502,-500.0,0.0001808,2]
[350103377,1737628246511,-500.0,0.0001808,2]
[350103378,1737628246521,-500.0,0.0001808,2]
[350103379,1737628246530,-500.0,0.0001808,2]
[350103380,1737628246539,-500.0,0.0001808,2]
[350103381,1737628246549,-500.0,0.0001808,2]
[350103382,1737628246558,-788.17,0.0001808,2]
[350103383,1737628246568,-500.0,0.0001808,2]
[350103384,1737628246577,-722.95,0.0001808,2]
[350103385,1737628246586,-599.32,0.0001808,2]
[350103386,1737628246596,-500.0,0.0001808,2]
[350103387,1737628246605,-500.0,0.0001808,2]
[350103388,1737628246615,-500.0,0.0001808,2]
[350103389,1737628246625,-500.0,0.0001808,2]
[350103390,1737628246634,-500.0,0.0001808,2]
[350103391,1737628246644,-500.0,0.0001808,2]
[350103392,1737628246654,-500.0,0.0001808,2]
[350103393,1737628246664,-500.0,0.0001808,2]
[350103394,1737628246674,-500.0,0.0001808,2]
[350103395,1737628246684,-881.88,0.00018082,2]
[350103396,1737628246698,-741.3,0.00018082,2]
[350103397,1737628246708,-556.21,0.00018082,2]
[350103398,1737628246719,-1227.15,0.00018082,2]
[350103399,1737628246731,-1762.16,0.00018082,2]
[350103400,1737628246741,-1174.6,0.00018082,2]
[350103401,1737628246751,-500.0,0.00018082,2]
[350103402,1737628246762,-1813.47,0.00018082,2]
[350103403,1737628246774,-868.18,0.00018082,2]
[350103404,1737628246784,-1398.82,0.00018082,2]
[350103405,1737628246794,-1853.11,0.00018082,2]
[350103406,1737628246805,-976.92,0.00018082,2]
[350103407,1737628246817,-803.47,0.00018082,2]
[350103408,1737628246828,-878.69,0.00018082,2]
[350103409,1737628246839,-2113.38,0.00018082,2]
[350103410,1737628246849,-2524.6,0.00018082,2]
[350103411,1737628246858,-500.0,0.00018082,2]
[350103412,1737628246867,-313.38406514,0.00018082,2]
[350103413,1737628246877,-2306.75,0.00018082,2]
[350103414,1737628246887,-684.26,0.00018082,2]
[350103415,1737628246896,-619.33,0.00018082,2]
[350103416,1737628246906,-500.0,0.00018082,2]
[350103417,1737628246916,-616.66,0.00018082,2]
[350103418,1737628246926,-500.0,0.00018082,2]
[350103419,1737628246936,-878.56,0.00018082,2]
[350103420,1737628246948,-3435.93,0.000181,2]
[350103421,1737628246957,-1546.53689568,0.00018107,2]
[350103422,1737628246967,-805.55555555,0.0001811,2]
[350103423,1737628246977,-11354.89930828,0.0001816,2]
[350103424,1737628246986,-500.0,0.00018167,2]
[350103425,1737628246995,-500.0,0.00018167,2]
[350103426,1737628247005,-500.0,0.00018167,2]
[350103427,1737628247014,-500.0,0.00018167,2]
[350103428,1737628247023,-500.0,0.00018167,2]
[350103429,1737628247032,-500.0,0.00018167,2]
[350103430,1737628247042,-500.0,0.00018167,2]
[350103431,1737628247051,-501.34,0.00018167,2]
[350103432,1737628247061,-500.0,0.00018167,2]
[350103433,1737628247070,-500.0,0.00018167,2]
[350103434,1737628247080,-500.0,0.00018167,2]
[350103435,1737628247089,-518.4,0.00018167,2]
[350103436,1737628247099,-500.0,0.00018167,2]
[350103437,1737628247107,-500.0,0.00018167,2]
[350103438,1737628247116,-500.0,0.00018167,2]
[350103439,1737628247125,-500.0,0.00018167,2]
[350103440,1737628247134,-1109.95,0.00018167,2]
[350103441,1737628247144,-500.0,0.00018167,2]
[350103442,1737628247153,-503.12,0.00018167,2]
[350103443,1737628247162,-1924.8,0.00018167,2]
[350103444,1737628247171,-1424.7,0.00018167,2]
[350103445,1737628247180,-846.93,0.00018167,2]
[350103446,1737628247189,-897.83,0.00018167,2]
[350103447,1737628247199,-1931.74,0.00018167,2]
[350103448,1737628247209,-500.0,0.00018167,2]
[350103449,1737628247218,-681.171483,0.00018167,2]
[350103450,1737628247227,-500.0,0.00018167,2]
[350103451,1737628247236,-500.0,0.00018167,2]
[350103452,1737628247246,-500.0,0.00018167,2]
[350103453,1737628247255,-1135.0,0.00018167,2]
[350103454,1737628247265,-745.81,0.00018167,2]
[350103455,1737628247274,-2877.57,0.00018167,2]
[350103456,1737628247284,-752.33,0.00018167,2]
[350103457,1737628247293,-594.772219,0.00018167,2]
[350103458,1737628247303,-500.0,0.00018167,2]
[350103459,1737628247312,-885.15,0.00018167,2]
[350103460,1737628247322,-1925.26,0.00018167,2]
[350103461,1737628247331,-1152.02,0.00018167,2]
[350103462,1737628247341,-1595.84,0.00018167,2]
[350103463,1737628247351,-500.0,0.00018167,2]
[350103464,1737628247360,-692.87,0.00018167,2]
[350103465,1737628247369,-500.0,0.00018167,2]
[350103466,1737628247379,-1782.27,0.00018167,2]
[350103467,1737628247388,-500.0,0.00018167,2]
[350103468,1737628247397,-3581.4,0.00018167,2]
[350103469,1737628247407,-2785.13,0.00018167,2]
[350103470,1737628247417,-649.91,0.00018167,2]
[350103471,1737628247428,-1135.06,0.00018167,2]
[350103472,1737628247438,-1952.88,0.00018167,2]
[350103473,1737628247447,-925.88,0.00018167,2]
[350103474,1737628247456,-2408.66,0.00018167,2]
[350103475,1737628247466,-575.04,0.00018167,2]
[350103476,1737628247620,-500.0,0.00018167,2]
[350103477,1737628247630,-500.0,0.00018167,2]
[350103478,1737628247640,-1828.0,0.00018167,2]
[350103479,1737628247650,-1061.78,0.00018167,2]
[350103480,1737628247659,-645.58,0.00018167,2]
[350103481,1737628247669,-1269.91,0.00018167,2]
[350103482,1737628247679,-2487.38,0.00018167,2]
[350103483,1737628247690,-873.75,0.00018167,2]
[350103484,1737628247699,-500.0,0.00018167,2]
[350103485,1737628247708,-1125.77,0.00018167,2]
[350103486,1737628247718,-776.84,0.00018167,2]
[350103487,1737628247727,-500.0,0.00018167,2]
[350103488,1737628247739,-667.54,0.00018167,2]
[350103489,1737628247749,-805.55555555,0.00018192,2]
[350103490,1737628247759,-1849.19105754,0.00018203,2]
[350103491,1737628247768,-338.98778287,0.00018204,2]
[350103492,1737628247777,-1000.0,0.00018221,2]
[350103493,1737628247787,-273.74642053,0.00018253,2]
[350103494,1737628247796,-11354.89930828,0.00018253,2]
[350103495,1737628247806,-805.55555555,0.00018274,2]
[350103496,1737628247815,-1118.552,0.00018294,2]
[350103497,1737628247824,-160.852,0.00018294,2]
[350103498,1737628247834,-151.09,0.000183,2]
[350103499,1737628247845,-151.09,0.000183,2]
[350103500,1737628247856,-151.09,0.000183,2]
[350103501,1737628247865,-160.939,0.0001834,2]
[350103502,1737628247877,-167.18582443,0.00018342,2]
[350103503,1737628247887,-500.0,0.00018351,2]
[350103504,1737628247897,-500.0,0.00018352,2]
[350103505,1737628247907,-500.0,0.00018352,2]
[350103506,1737628247917,-213.125266,0.00018352,2]
[350103507,1737628247926,-500.0,0.00018352,2]
[350103508,1737628247935,-500.0,0.00018352,2]
[350103509,1737628247945,-500.0,0.00018352,2]
[350103510,1737628247954,-500.0,0.00018352,2]
[350103511,1737628247964,-454.42289923,0.00018352,2]
[350103512,1737628247973,-500.0,0.00018352,2]
[350103513,1737628247983,-500.0,0.00018352,2]
[350103514,1737628247993,-500.0,0.00018352,2]
[350103515,1737628248002,-500.0,0.00018352,2]
[350103516,1737628248012,-500.0,0.00018352,2]
[350103517,1737628248021,-196.76483455,0.00018352,2]
[350103518,1737628248031,-500.0,0.00018352,2]
[350103519,1737628248040,-500.0,0.00018352,2]
[350103520,1737628248050,-500.0,0.00018352,2]
[350103521,1737628248061,-500.0,0.00018352,2]
[350103522,1737628248070,-500.0,0.00018352,2]
[350103523,1737628248080,-500.0,0.00018352,2]
[350103524,1737628248091,-500.0,0.00018352,2]
[350103525,1737628248105,-500.0,0.00018352,2]
[350103526,1737628248115,-500.0,0.00018352,2]
[350103527,1737628248125,-500.0,0.00018352,2]
[350103528,1737628248135,-500.0,0.00018352,2]
[350103529,1737628248145,-500.0,0.00018352,2]
[350103530,1737628248154,-500.0,0.00018352,2]
[350103531,1737628248165,-283.28791583,0.00018352,2]
[350103532,1737628248174,-500.0,0.00018352,2]
[350103533,1737628248183,-500.0,0.00018352,2]
[350103534,1737628248193,-565.33786348,0.00018352,2]
[350103535,1737628248202,-500.0,0.00018352,2]
[350103536,1737628248212,-500.0,0.00018352,2]
[350103537,1737628248221,-500.0,0.00018352,2]
[350103538,1737628248229,-184.6405745,0.00018352,2]
[350103539,1737628248239,-500.0,0.00018352,2]
[350103540,1737628248248,-500.0,0.00018352,2]
[350103541,1737628248257,-500.0,0.00018352,2]
[350103542,1737628248266,-500.0,0.00018352,2]
[350103543,1737628248276,-500.0,0.00018352,2]
[350103544,1737628248285,-500.0,0.00018352,2]
[350103545,1737628248295,-500.0,0.00018352,2]
[350103546,1737628248304,-541.09205547,0.00018352,2]
[350103547,1737628248314,-500.0,0.00018352,2]
[350103548,1737628248323,-500.0,0.00018352,2]
[350103549,1737628248333,-500.0,0.00018352,2]
[350103550,1737628248344,-500.0,0.00018352,2]
[350103551,1737628248354,-500.0,0.00018352,2]
[350103552,1737628248363,-300.0,0.00018352,2]
[350103553,1737628248373,-500.0,0.00018352,2]
[350103554,1737628248383,-500.0,0.00018352,2]
[350103555,1737628248396,-500.0,0.00018352,2]
[350103556,1737628248405,-500.0,0.00018352,2]
[350103557,1737628248414,-553.17,0.00018352,2]
[350103558,1737628248424,-608.15575848,0.00018353,2]
[350103559,1737628248433,-500.0,0.00018353,2]
[350103560,1737628248442,-500.0,0.00018353,2]
[350103561,1737628248451,-500.0,0.00018353,2]
[350103562,1737628248461,-500.0,0.00018353,2]
[350103563,1737628248471,-519.1844596,0.00018353,2]
[350103564,1737628248480,-519.15433761,0.00018353,2]
[350103565,1737628248489,-500.0,0.00018353,2]
[350103566,1737628248499,-500.0,0.00018353,2]
[350103567,1737628248509,-500.0,0.00018353,2]
[350103568,1737628248518,-500.0,0.00018353,2]
[350103569,1737628248528,-607.25,0.00018353,2]
[350103570,1737628248537,-500.0,0.00018353,2]
[350103571,1737628248549,-500.0,0.00018353,2]
[350103572,1737628248559,-500.0,0.00018353,2]
[350103573,1737628248568,-500.0,0.00018353,2]
[350103574,1737628248577,-500.0,0.00018353,2]
[350103575,1737628248588,-500.0,0.00018353,2]
[350103576,1737628248597,-500.0,0.00018353,2]
[350103577,1737628248608,-500.0,0.00018353,2]
[350103578,1737628248618,-500.0,0.00018353,2]
[350103579,1737628248629,-500.0,0.00018353,2]
[350103580,1737628248640,-538.78,0.00018353,2]
[350103581,1737628248650,-500.0,0.00018353,2]
[350103582,1737628248660,-567.4,0.00018353,2]
[350103583,1737628248670,-500.0,0.00018353,2]
[350103584,1737628248679,-524.77,0.00018353,2]
[350103585,1737628248691,-500.0,0.00018353,2]
[350103586,1737628248702,-500.0,0.00018353,2]
[350103587,1737628248711,-500.0,0.00018353,2]
[350103588,1737628248720,-522.01,0.00018353,2]
[350103589,1737628248731,-500.0,0.00018353,2]
[350103590,1737628248741,-787.5,0.00018353,2]
[350103591,1737628248750,-1275.34,0.00018353,2]
[350103592,1737628248759,-769.32,0.00018353,2]
[350103593,1737628248768,-2156.24,0.00018353,2]
[350103594,1737628248779,-1069.57,0.00018353,2]
[350103595,1737628248789,-1953.19,0.00018353,2]
[350103596,1737628248798,-877.78,0.00018353,2]
[350103597,1737628248808,-728.1,0.00018353,2]
[350103598,1737628248817,-1299.42,0.00018353,2]
[350103599,1737628248826,-500.0,0.00018353,2]
[350103600,1737628248837,-1095.09,0.00018353,2]
[350103601,1737628248847,-3013.73,0.00018353,2]
[350103602,1737628248857,-500.0,0.00018353,2]
[350103603,1737628248867,-2369.17,0.00018353,2]
[350103604,1737628248875,-500.0,0.00018353,2]
[350103605,1737628248885,-4365.14,0.00018353,2]
[350103606,1737628248895,-500.0,0.00018353,2]
[350103607,1737628248904,-1210.34,0.00018353,2]
[350103608,1737628248915,-1736.02,0.00018353,2]
[350103609,1737628248924,-580.8,0.00018353,2]
[350103610,1737628248934,-896.15,0.00018353,2]
[350103611,1737628248943,-1157.55,0.00018353,2]
[350103612,1737628248952,-500.0,0.00018353,2]
[350103613,1737628248962,-970.94,0.00018353,2]
[350103614,1737628248972,-500.0,0.00018353,2]
[350103615,1737628248981,-845.56,0.00018353,2]
[350103616,1737628248991,-554.1,0.00018353,2]
[350103617,1737628249000,-2164.97,0.00018353,2]
[350103618,1737628249010,-1078.92,0.00018353,2]
[350103619,1737628249020,-500.0,0.00018353,2]
[350103620,1737628249029,-500.0,0.00018353,2]
[350103621,1737628249038,-991.29,0.00018353,2]
[350103622,1737628249047,-832.57,0.00018353,2]
[350103623,1737628249057,-500.0,0.00018353,2]
[350103624,1737628249066,-1120.57,0.00018353,2]
[350103625,1737628249075,-500.0,0.00018353,2]
[350103626,1737628249084,-1260.06,0.00018353,2]
[350103627,1737628249095,-518.41364102,0.00018353,2]
[350103628,1737628249104,-1318.84,0.00018353,2]
[350103629,1737628249114,-500.0,0.00018353,2]
[350103630,1737628249123,-3971.43,0.00018353,2]
[350103631,1737628249133,-500.0,0.00018353,2]
[350103632,1737628249142,-500.0,0.00018353,2]
[350103633,1737628249152,-500.0,0.00018353,2]
[350103634,1737628249161,-500.0,0.00018353,2]
[350103635,1737628249171,-1000.0,0.00018353,2]
[350103636,1737628249180,-1140.59,0.00018353,2]
[350103637,1737628249189,-500.0,0.00018353,2]
[350103638,1737628249199,-500.0,0.00018353,2]
[350103639,1737628249208,-500.0,0.00018353,2]
[350103640,1737628249218,-753.77,0.00018353,2]
[350103641,1737628249228,-500.0,0.00018353,2]
[350103642,1737628249238,-1619.98,0.00018353,2]
[350103643,1737628249247,-500.0,0.00018353,2]
[350103644,1737628249259,-500.0,0.00018353,2]
[350103645,1737628249268,-707.4,0.00018353,2]
[350103646,1737628249278,-1613.72,0.00018353,2]
[350103647,1737628249287,-877.65,0.00018353,2]
[350103648,1737628249296,-525.36,0.00018353,2]
[350103649,1737628249306,-913.42,0.00018353,2]
[350103650,1737628249315,-500.0,0.00018353,2]
[350103651,1737628249324,-1322.09,0.00018353,2]
[350103652,1737628249333,-500.0,0.00018353,2]
[350103653,1737628249344,-204319.0,0.00018354,4]
[350103654,1737628249354,-500.0,0.00018354,2]
[350103655,1737628249364,-500.0,0.00018354,2]
[350103656,1737628249373,-500.0,0.00018354,2]
[350103657,1737628249383,-500.0,0.00018354,2]
[350103658,1737628249393,-592.61071851,0.00018354,2]
[350103659,1737628249402,-251.62710367,0.00018354,2]
[350103660,1737628249412,-500.0,0.00018354,2]
[350103661,1737628249421,-500.0,0.00018354,2]
[350103662,1737628249431,-500.0,0.00018354,2]
[350103663,1737628249441,-500.0,0.00018354,2]
[350103664,1737628249451,-512.04,0.00018354,2]
[350103665,1737628249460,-794.66,0.00018354,2]
[350103666,1737628249470,-500.0,0.00018354,2]
[350103667,1737628249479,-500.0,0.00018354,2]
[350103668,1737628249488,-500.0,0.00018354,2]
[350103669,1737628249498,-500.0,0.00018354,2]
[350103670,1737628249507,-500.0,0.00018354,2]
[350103671,1737628249517,-500.0,0.00018354,2]
[350103672,1737628249526,-500.0,0.00018354,2]
[350103673,1737628249535,-500.0,0.00018354,2]
[350103674,1737628249544,-500.0,0.00018354,2]
[350103675,1737628249554,-500.0,0.00018354,2]
[350103676,1737628249563,-500.0,0.00018354,2]
[350103677,1737628249573,-500.0,0.00018354,2]
[350103678,1737628249583,-500.0,0.00018354,2]
[350103679,1737628249593,-500.0,0.00018354,2]
[350103680,1737628249603,-500.0,0.00018354,2]
[350103681,1737628249612,-500.0,0.00018354,2]
[350103682,1737628249622,-500.0,0.00018354,2]
[350103683,1737628249632,-500.0,0.00018354,2]
[350103684,1737628249641,-500.0,0.00018354,2]
[350103685,1737628249651,-500.0,0.00018354,2]
[350103686,1737628249660,-500.0,0.00018354,2]
[350103687,1737628249669,-500.0,0.00018354,2]
[350103688,1737628249679,-500.0,0.00018354,2]
[350103689,1737628249691,-500.0,0.00018354,2]
[350103690,1737628249700,-500.0,0.00018354,2]
[350103691,1737628249710,-264.50442501,0.00018354,2]
[350103692,1737628249719,-500.0,0.00018354,2]
[350103693,1737628249730,-515.83184728,0.00018354,2]
[350103694,1737628249740,-788.17,0.00018354,2]
[350103695,1737628249749,-500.0,0.00018354,2]
[350103696,1737628249758,-722.95,0.00018354,2]
[350103697,1737628249771,-599.32,0.00018354,2]
[350103698,1737628249781,-267.27331726,0.00018354,2]
[350103699,1737628249790,-500.0,0.00018354,2]
[350103700,1737628249800,-500.0,0.00018354,2]
[350103701,1737628249809,-500.0,0.00018354,2]
[350103702,1737628249819,-500.0,0.00018354,2]
[350103703,1737628249829,-500.0,0.00018354,2]
[350103704,1737628249838,-409.88303278,0.00018354,2]
[350103705,1737628249848,-500.0,0.00018354,2]
[350103706,1737628249857,-500.0,0.00018354,2]
[350103707,1737628249866,-881.88,0.00018356,2]
[350103708,1737628249876,-741.3,0.00018356,2]
[350103709,1737628249887,-556.21,0.00018356,2]
[350103710,1737628249896,-1227.15,0.00018356,2]
[350103711,1737628249905,-1762.16,0.00018356,2]
[350103712,1737628249916,-1174.6,0.00018356,2]
[350103713,1737628249925,-500.0,0.00018356,2]
[350103714,1737628249935,-1813.47,0.00018356,2]
[350103715,1737628249944,-868.18,0.00018356,2]
[350103716,1737628249953,-1398.82,0.00018356,2]
[350103717,1737628249963,-1853.11,0.00018356,2]
[350103718,1737628249973,-976.92,0.00018356,2]
[350103719,1737628249983,-803.47,0.00018356,2]
[350103720,1737628249993,-878.69,0.00018356,2]
[350103721,1737628250002,-2113.38,0.00018356,2]
[350103722,1737628250012,-2524.6,0.00018356,2]
[350103723,1737628250021,-500.0,0.00018356,2]
[350103724,1737628250030,-2306.75,0.00018356,2]
[350103725,1737628250040,-684.26,0.00018356,2]
[350103726,1737628250050,-619.33,0.00018356,2]
[350103727,1737628250059,-500.0,0.00018356,2]
[350103728,1737628250068,-616.66,0.00018356,2]
[350103729,1737628250081,-500.0,0.00018356,2]
[350103730,1737628250091,-72548.81,0.00018356,2]
[350103731,1737628250100,-805.55555555,0.00018384,2]
[350103732,1737628250110,-173.07,0.00018396,2]
[350103733,1737628250119,-200.0,0.00018408,2]
[350103734,1737628250128,-1000.0,0.00018408,2]
[350103735,1737628250137,-411.06469654,0.00018427,2]
[350103736,1737628250147,-500.0,0.00018441,2]
[350103737,1737628250157,-500.0,0.00018441,2]
[350103738,1737628250166,-500.0,0.00018441,2]
[350103739,1737628250176,-500.0,0.00018441,2]
[350103740,1737628250185,-500.0,0.00018441,2]
[350103741,1737628250195,-500.0,0.00018441,2]
[350103742,1737628250204,-500.0,0.00018441,2]
[350103743,1737628250213,-501.34,0.00018441,2]
[350103744,1737628250222,-500.0,0.00018441,2]
[350103745,1737628250231,-500.0,0.00018441,2]
[350103746,1737628250240,-417.61590834,0.00018441,2]
[350103747,1737628250249,-518.4,0.00018441,2]
[350103748,1737628250259,-500.0,0.00018441,2]
[350103749,1737628250268,-500.0,0.00018441,2]
[350103750,1737628250277,-500.0,0.00018441,2]
[350103751,1737628250286,-500.0,0.00018441,2]
[350103752,1737628250296,-1109.95,0.00018441,2]
[350103753,1737628250305,-500.0,0.00018441,2]
[350103754,1737628250314,-503.12,0.00018441,2]
[350103755,1737628250324,-1924.8,0.00018441,2]
[350103756,1737628250333,-1424.7,0.00018441,2]
[350103757,1737628250345,-846.93,0.00018441,2]
[350103758,1737628250354,-897.83,0.00018441,2]
[350103759,1737628250363,-1931.74,0.00018441,2]
[350103760,1737628250373,-500.0,0.00018441,2]
[350103761,1737628250382,-681.171483,0.00018441,2]
[350103762,1737628250391,-500.0,0.00018441,2]
[350103763,1737628250401,-500.0,0.00018441,2]
[350103764,1737628250410,-1135.0,0.00018441,2]
[350103765,1737628250419,-745.81,0.00018441,2]
[350103766,1737628250428,-2877.57,0.00018441,2]
[350103767,1737628250438,-752.33,0.00018441,2]
[350103768,1737628250447,-594.772219,0.00018441,2]
[350103769,1737628250456,-500.0,0.00018441,2]
[350103770,1737628250466,-885.15,0.00018441,2]
[350103771,1737628250475,-1925.26,0.00018441,2]
[350103772,1737628250485,-1152.02,0.00018441,2]
[350103773,1737628250623,-1595.84,0.00018441,2]
[350103774,1737628250634,-500.0,0.00018441,2]
[350103775,1737628250644,-692.87,0.00018441,2]
[350103776,1737628250653,-500.0,0.00018441,2]
[350103777,1737628250663,-1782.27,0.00018441,2]
[350103778,1737628250672,-490.0,0.00018441,2]
[350103779,1737628250682,-3581.4,0.00018441,2]
[350103780,1737628250694,-2785.13,0.00018441,2]
[350103781,1737628250703,-649.91,0.00018441,2]
[350103782,1737628250713,-1135.06,0.00018441,2]
[350103783,1737628250722,-1952.88,0.00018441,2]
[350103784,1737628250733,-925.88,0.00018441,2]
[350103785,1737628250742,-2408.66,0.00018441,2]
[350103786,1737628250751,-575.04,0.00018441,2]
[350103787,1737628250761,-500.0,0.00018441,2]
[350103788,1737628250771,-500.0,0.00018441,2]
[350103789,1737628250781,-1828.0,0.00018441,2]
[350103790,1737628250791,-1061.78,0.00018441,2]
[350103791,1737628250800,-645.58,0.00018441,2]
[350103792,1737628250809,-1269.91,0.00018441,2]
[350103793,1737628250820,-2487.38,0.00018441,2]
[350103794,1737628250830,-873.75,0.00018441,2]
[350103795,1737628250841,-500.0,0.00018441,2]
[350103796,1737628250851,-1125.77,0.00018441,2]
[350103797,1737628250860,-776.84,0.00018441,2]
[350103798,1737628250870,-500.0,0.00018441,2]
[350103799,1737628250879,-1849.19105754,0.00018453,2]
[350103800,1737628250889,-1000.0,0.00018462,2]
[350103801,1737628250898,-805.55555555,0.00018466,2]
[350103802,1737628250907,-2040.0,0.00018478,2]
[350103803,1737628250917,-1546.53689568,0.00018486,2]
[350103804,1737628250926,-1274.529,0.00018513,2]
[350103805,1737628250935,-2026.692,0.00018513,2]
[350103806,1737628250944,-150.484,0.00018513,2]
[350103807,1737628250953,-567.0,0.00018513,2]
[350103808,1737628250962,-639.138,0.00018513,2]
[350103809,1737628250971,-3903.0,0.00018513,2]
[350103810,1737628250982,-1864.0,0.00018513,2]
[350103811,1737628250991,-907.0,0.00018513,2]
[350103812,1737628251001,-1261.0,0.00018513,2]
[350103813,1737628251011,-2959.648,0.00018513,2]
[350103814,1737628251022,-150.0,0.00018513,2]
[350103815,1737628251031,-781.0,0.00018513,2]
[350103816,1737628251043,-1176.0,0.00018513,2]
[350103817,1737628251057,-4001.813,0.00018513,2]
[350103818,1737628251068,-539.125,0.00018513,2]
[350103819,1737628251077,-1106.0,0.00018513,2]
[350103820,1737628251086,-805.55555555,0.00018548,2]
[350103821,1737628251097,-500.0,0.00018625,2]
[350103822,1737628251107,-500.0,0.00018625,2]
[350103823,1737628251116,-500.0,0.00018625,2]
[350103824,1737628251126,-500.0,0.00018625,2]
[350103825,1737628251136,-500.0,0.00018625,2]
[350103826,1737628251148,-500.0,0.00018625,2]
[350103827,1737628251160,-500.0,0.00018625,2]
[350103828,1737628251170,-500.0,0.00018625,2]
[350103829,1737628251179,-500.0,0.00018625,2]
[350103830,1737628251190,-500.0,0.00018625,2]
[350103831,1737628251201,-500.0,0.00018625,2]
[350103832,1737628251211,-500.0,0.00018625,2]
[350103833,1737628251221,-500.0,0.00018625,2]
[350103834,1737628251231,-359.04443023,0.00018625,2]
[350103835,1737628251241,-500.0,0.00018626,2]
[350103836,1737628251250,-500.0,0.00018626,2]
[350103837,1737628251259,-500.0,0.00018626,2]
[350103838,1737628251269,-500.0,0.00018626,2]
[350103839,1737628251278,-500.0,0.00018626,2]
[350103840,1737628251287,-500.0,0.00018626,2]
[350103841,1737628251297,-500.0,0.00018626,2]
[350103842,1737628251306,-500.0,0.00018626,2]
[350103843,1737628251315,-635.44178521,0.00018626,2]
[350103844,1737628251324,-472.62642039,0.00018626,2]
[350103845,1737628251334,-500.0,0.00018626,2]
[350103846,1737628251345,-500.0,0.00018626,2]
[350103847,1737628251355,-500.0,0.00018626,2]
[350103848,1737628251364,-500.0,0.00018626,2]
[350103849,1737628251373,-500.0,0.00018626,2]
[350103850,1737628251382,-500.0,0.00018626,2]
[350103851,1737628251391,-500.0,0.00018626,2]
[350103852,1737628251401,-500.0,0.00018626,2]
[350103853,1737628251410,-646.66688309,0.00018626,2]
[350103854,1737628251419,-500.0,0.00018626,2]
[350103855,1737628251428,-500.0,0.00018626,2]
[350103856,1737628251438,-500.0,0.00018626,2]
[350103857,1737628251448,-500.0,0.00018626,2]
[350103858,1737628251457,-500.0,0.00018626,2]
[350103859,1737628251467,-500.0,0.00018626,2]
[350103860,1737628251477,-500.0,0.00018626,2]
[350103861,1737628251486,-500.0,0.00018626,2]
[350103862,1737628251495,-500.0,0.00018626,2]
[350103863,1737628251504,-500.0,0.00018626,2]
[350103864,1737628251513,-500.0,0.00018626,2]
[350103865,1737628251523,-500.0,0.00018626,2]
[350103866,1737628251532,-500.0,0.00018626,2]
[350103867,1737628251541,-642.63115681,0.00018626,2]
[350103868,1737628251550,-500.0,0.00018626,2]
[350103869,1737628251559,-300.0,0.00018626,2]
[350103870,1737628251569,-500.0,0.00018626,2]
[350103871,1737628251578,-500.0,0.00018626,2]
[350103872,1737628251589,-500.0,0.00018626,2]
[350103873,1737628251599,-500.0,0.00018626,2]
[350103874,1737628251608,-553.17,0.00018626,2]